bitfinex/quotes_BTCUSD_20250530
["timestamp","ask_amount","ask_price","bid_price","bid_amount"]
[1748588261420,0.22960016,105740.0,105730.0,0.39305395]
[1748588262083,0.22960016,105740.0,105730.0,0.39205395]
[1748588262540,0.19860016,105740.0,105730.0,0.39205395]
[1748588262982,0.19860016,105740.0,105730.0,0.39305395]
[1748588263237,0.30596275,105740.0,105730.0,0.001]
[1748588264146,0.30696275,105740.0,105730.0,0.001]
[1748588264357,0.64696275,105740.0,105730.0,0.001]
[1748588265429,0.22951894,105730.0,105720.0,9.288e-05]
[1748588265644,0.22951894,105730.0,105720.0,0.09114683]
[1748588266642,0.96141289,105730.0,105720.0,9.288e-05]
[1748588266862,0.66257289,105730.0,105720.0,9.288e-05]
[1748588267086,0.96341289,105730.0,105720.0,9.288e-05]
[1748588267533,0.66157289,105730.0,105720.0,9.288e-05]
[1748588268825,0.66657289,105730.0,105720.0,0.00109288]
[1748588269370,0.66557289,105730.0,105720.0,0.00109288]
[1748588269509,0.67057289,105730.0,105720.0,0.00209288]
[1748588271320,0.67057289,105730.0,105670.0,0.035]
[1748588271321,0.20817498,105680.0,105670.0,0.035]
[1748588271538,0.57987498,105680.0,105670.0,0.1111469]
[1748588271739,0.57987498,105680.0,105670.0,0.02009295]
[1748588272174,0.56457498,105680.0,105670.0,0.02009295]
[1748588272413,0.56457498,105680.0,105670.0,0.1111469]
[1748588272595,0.54817498,105680.0,105670.0,0.1141469]
[1748588272819,0.20817498,105680.0,105670.0,0.1171469]
[1748588273165,0.20817498,105680.0,105670.0,0.1141469]
[1748588273378,0.21017498,105680.0,105670.0,0.1111469]
[1748588273806,0.21217498,105680.0,105670.0,0.1111469]
[1748588274700,0.22817498,105680.0,105670.0,0.1111469]
[1748588274916,0.32053757,105680.0,105670.0,0.02009295]
[1748588275982,0.66053757,105680.0,105670.0,0.02009295]
[1748588277803,0.58457498,105680.0,105670.0,0.02009295]
[1748588278672,0.22857498,105680.0,105670.0,0.02009295]
[1748588278887,0.55217498,105680.0,105670.0,0.02009295]
[1748588280990,0.55217498,105680.0,105670.0,0.1111469]
[1748588281625,0.21217498,105680.0,105670.0,0.1423469]
[1748588281836,0.21217498,105680.0,105670.0,0.14471262]
[1748588282527,0.21217498,105680.0,105670.0,0.55335262]
[1748588282746,0.21217498,105680.0,105670.0,0.5509869]
[1748588282976,0.2027129,105680.0,105670.0,1.13453236]
[1748588283205,0.2027129,105680.0,105670.0,1.1439956]
[1748588283445,0.2027129,105680.0,105670.0,0.94526389]
[1748588283681,0.2027129,105680.0,105670.0,0.96419064]
[1748588283948,0.02292486,105680.0,105670.0,1.17238532]
[1748588284170,0.21217498,105680.0,105670.0,0.95980474]
[1748588284598,0.21217498,105680.0,105670.0,0.96926816]
[1748588284821,0.002,105680.0,105670.0,1.50799987]
[1748588285040,0.02838381,105690.0,105680.0,0.56980447]
[1748588285259,0.1987129,105680.0,105670.0,0.1121469]
[1748588285484,0.27467549,105680.0,105670.0,0.02109295]
[1748588285722,0.2307129,105680.0,105670.0,0.02009295]
[1748588285938,0.30767549,105680.0,105670.0,0.02609295]
[1748588286375,0.30767549,105680.0,105670.0,0.12145295]
[1748588286586,0.30667549,105680.0,105670.0,0.11745295]
[1748588286804,0.30667549,105680.0,105670.0,0.02309295]
[1748588287030,0.29097549,105680.0,105670.0,0.02309295]
[1748588287243,0.29097549,105680.0,105670.0,0.00091558]
[1748588287244,0.73732944,105680.0,105670.0,0.00091558]
[1748588288135,0.20827351,105630.0,105620.0,0.09465066]
[1748588288346,0.20827351,105630.0,105620.0,0.58206461]
[1748588288554,0.20827351,105630.0,105620.0,0.92206461]
[1748588289012,0.20827351,105630.0,105620.0,0.52570461]
[1748588289443,0.20827351,105630.0,105620.0,0.52619506]
[1748588289686,0.20827351,105630.0,105620.0,0.92259506]
[1748588290123,0.21027351,105630.0,105620.0,0.94093995]
[1748588290334,0.20080696,105630.0,105620.0,1.33733995]
[1748588290765,0.20080696,105630.0,105620.0,1.52669802]
[1748588290988,0.20080696,105630.0,105620.0,1.33733995]
[1748588291200,0.19134014,105630.0,105620.0,1.33733995]
[1748588291462,0.19134014,105630.0,105620.0,1.32787205]
[1748588291895,0.19134014,105630.0,105620.0,2.30776884]
[1748588292118,0.20825417,105640.0,105630.0,0.40881784]
[1748588292322,0.21772028,105640.0,105630.0,1.46476366]
[1748588292530,0.21772028,105640.0,105630.0,1.47423048]
[1748588292751,0.21772028,105640.0,105630.0,1.48973048]
[1748588292954,0.21772028,105640.0,105630.0,1.49919703]
[1748588293186,0.20825435,105640.0,105630.0,1.28145679]
[1748588293405,0.01893213,105640.0,105630.0,1.48973021]
[1748588293626,0.01993213,105640.0,105630.0,1.49373021]
[1748588293857,0.20925435,105640.0,105630.0,1.27598979]
[1748588294104,0.20925435,105640.0,105630.0,1.61598979]
[1748588294595,0.19978833,105640.0,105630.0,1.81779693]
[1748588294811,0.002,105640.0,105630.0,1.82726375]
[1748588295057,0.02093123,105640.0,105630.0,1.84619677]
[1748588295303,0.03986264,105640.0,105630.0,1.83673048]
[1748588295520,0.02093087,105640.0,105630.0,1.8556635]
[1748588295737,0.03039671,105640.0,105630.0,1.8556635]
[1748588295946,0.03986273,105640.0,105630.0,1.8556635]
[1748588296161,0.0114653,105640.0,105630.0,1.8556635]
[1748588296374,0.02093123,105640.0,105630.0,1.46138651]
[1748588296593,0.03986246,105640.0,105630.0,1.8556635]
[1748588296769,0.0114653,105640.0,105630.0,2.2556635]
[1748588296985,0.002,105640.0,105630.0,5.3862795]
[1748588297120,0.02093087,105640.0,105630.0,5.2334965]
[1748588297546,0.002,105640.0,105630.0,5.2334965]
[1748588297969,0.002,105640.0,105630.0,1.5154455]
[1748588298225,0.002,105640.0,105630.0,6.4346075]
[1748588298554,0.002,105640.0,105630.0,6.04033051]
[1748588298759,0.002,105640.0,105630.0,6.4346075]
[1748588299240,0.19873189,105670.0,105660.0,0.22955053]
[1748588299470,0.20819522,105670.0,105660.0,1.53014586]
[1748588299703,0.00946306,105670.0,105660.0,1.55853756]
[1748588299912,0.22712098,105670.0,105660.0,1.53961]
[1748588300132,0.02838909,105670.0,105660.0,1.57307868]
[1748588300353,0.19871308,105680.0,105670.0,0.23113189]
[1748588300566,0.19871308,105680.0,105670.0,0.12345395]
[1748588301447,0.19871308,105680.0,105670.0,0.71646274]
[1748588301665,0.19871308,105680.0,105670.0,0.51773094]
[1748588301918,0.19871308,105680.0,105670.0,0.70699941]
[1748588302163,0.01892477,105680.0,105670.0,0.73538895]
[1748588302410,0.20817533,105680.0,105670.0,1.20844916]
[1748588302642,0.01892424,105680.0,105670.0,1.21791231]
[1748588302914,0.22709957,105680.0,105670.0,1.22737537]
[1748588303133,0.03784901,105680.0,105670.0,1.23683825]
[1748588303365,0.2271001,105680.0,105670.0,1.22737537]
[1748588303627,0.02838702,105680.0,105670.0,1.23683762]
[1748588303852,0.22709887,105680.0,105670.0,1.2324528]
[1748588304102,0.31896146,105680.0,105670.0,0.09605395]
[1748588304334,0.31623775,105680.0,105670.0,0.49253395]
[1748588304800,0.24027516,105680.0,105670.0,0.49253395]
[1748588305500,0.22407516,105680.0,105670.0,0.49253395]
[1748588305714,0.20817516,105680.0,105670.0,0.49253395]
[1748588306175,0.16817516,105680.0,105670.0,0.49253395]
[1748588307616,0.16817516,105680.0,105670.0,0.09605395]
[1748588307820,0.16817516,105680.0,105670.0,0.49269395]
[1748588310826,0.16817516,105680.0,105670.0,0.09605395]
[1748588311036,0.16817516,105680.0,105670.0,0.49245395]
[1748588311253,0.16673516,105680.0,105670.0,0.49245395]
[1748588312115,0.61429775,105680.0,105670.0,0.005]
[1748588312333,0.74271346,105680.0,105670.0,0.005]
[1748588312575,0.75391442,105680.0,105670.0,0.005]
[1748588312793,0.75391442,105680.0,105670.0,0.002]
[1748588313027,0.57053171,105670.0,105660.0,0.00049045]
[1748588313241,0.53949247,105670.0,105660.0,0.00049045]
[1748588313451,0.54895571,105670.0,105660.0,0.00049045]
[1748588314597,0.53999495,105670.0,105660.0,0.00049045]
[1748588315817,0.54399495,105670.0,105660.0,0.00149045]
[1748588316166,0.54799495,105670.0,105660.0,0.00249045]
[1748588319308,0.51619495,105670.0,105660.0,0.00249045]
[1748588320361,0.17619495,105670.0,105660.0,0.00249045]
[1748588321621,0.17619495,105670.0,105660.0,0.41117045]
[1748588323009,0.17619495,105670.0,105660.0,0.5022244]
[1748588326167,0.17619495,105670.0,105660.0,0.5022244]
[1748588327144,0.17619495,105670.0,105660.0,0.5339244]
[1748588327560,0.17219495,105670.0,105660.0,0.5329244]
[1748588328014,0.17519495,105670.0,105660.0,0.5329244]
[1748588328221,0.13519495,105670.0,105660.0,0.5329244]
[1748588328444,0.12819495,105670.0,105660.0,0.5319244]
[1748588328662,0.1376581,105670.0,105660.0,0.5319244]
[1748588329292,0.12819495,105670.0,105660.0,0.5319244]
[1748588329506,0.13019495,105670.0,105660.0,0.5319244]
[1748588329765,0.12819495,105670.0,105660.0,0.5319244]
[1748588330193,0.12819495,105670.0,105660.0,0.5329244]
[1748588335348,0.08819495,105670.0,105660.0,0.5329244]
[1748588335574,0.08819495,105670.0,105660.0,0.7316751]
[1748588335791,0.08819495,105670.0,105660.0,0.74113932]
[1748588336007,0.08819495,105670.0,105660.0,0.75060346]
[1748588336235,0.08819495,105670.0,105660.0,0.5329244]
[1748588336930,0.08819495,105670.0,105660.0,0.72221079]
[1748588337137,0.08819495,105670.0,105660.0,0.73167501]
[1748588337418,0.08819495,105670.0,105660.0,0.5329244]
[1748588337828,0.08819495,105670.0,105660.0,0.92720139]
[1748588338266,0.08819495,105670.0,105660.0,1.11648778]
[1748588338503,0.08819495,105670.0,105660.0,1.13541614]
[1748588338726,0.07873171,105670.0,105660.0,0.92720139]
[1748588339171,0.07873171,105670.0,105660.0,1.11648778]
[1748588339425,0.08819495,105670.0,105660.0,0.0925444]
[1748588339649,0.11989495,105670.0,105660.0,0.0925444]
[1748588339867,0.11989495,105670.0,105660.0,0.4888644]
[1748588340304,0.11989495,105670.0,105660.0,0.39781045]
[1748588341385,0.10419495,105670.0,105660.0,0.39781045]
[1748588342250,0.06419495,105670.0,105660.0,0.39781045]
[1748588343125,0.06419495,105670.0,105660.0,0.00149045]
[1748588343126,0.04819495,105670.0,105660.0,0.00149045]
[1748588343340,0.04819495,105670.0,105660.0,0.39785045]
[1748588345267,0.04819495,105670.0,105660.0,0.4889044]
[1748588347565,0.04819495,105670.0,105660.0,1.112232]
[1748588347778,0.06712134,105670.0,105660.0,1.12169614]
[1748588347993,0.06712134,105670.0,105660.0,1.12169579]
[1748588348203,0.06712134,105670.0,105660.0,1.11223192]
[1748588348415,0.04819513,105670.0,105660.0,1.11223209]
[1748588348882,0.04819513,105670.0,105660.0,1.54062414]
[1748588349095,0.04819513,105670.0,105660.0,0.74634715]
[1748588349314,0.00819513,105670.0,105660.0,0.74634715]
[1748588349536,0.00819513,105670.0,105660.0,0.5192044]
[1748588349769,0.1974636,105670.0,105660.0,0.5192044]
[1748588350627,0.17619759,105680.0,105670.0,0.18926847]
[1748588350857,0.17619759,105680.0,105670.0,0.12225395]
[1748588351062,0.17619759,105680.0,105670.0,0.12461953]
[1748588351386,0.17619759,105680.0,105670.0,0.12225395]
[1748588352720,0.18666011,105680.0,105670.0,0.12461953]
[1748588352935,0.18766011,105680.0,105670.0,0.12461953]
[1748588353577,0.18566011,105680.0,105670.0,0.12461953]
[1748588354039,0.0189246,105680.0,105670.0,0.34227709]
[1748588354268,0.20817516,105680.0,105670.0,0.12225395]
[1748588354490,0.20817516,105680.0,105670.0,0.12461951]
[1748588354928,0.20817516,105680.0,105670.0,0.12561951]
[1748588355158,0.19871255,105680.0,105670.0,0.73755433]
[1748588355382,0.21763715,105680.0,105670.0,0.71626274]
[1748588356023,0.21763715,105680.0,105670.0,0.72572589]
[1748588356498,0.21763715,105680.0,105670.0,0.74465174]
[1748588356499,0.0189246,105680.0,105670.0,0.74465174]
[1748588356721,0.03784893,105680.0,105670.0,1.46474481]
[1748588356939,0.22709949,105680.0,105670.0,0.9497578]
[1748588357805,0.2270994,105680.0,105670.0,0.9497578]
[1748588358018,0.18928336,105690.0,105680.0,0.58485349]
[1748588358019,0.01892209,105690.0,105680.0,0.58485349]
[1748588358242,0.02838336,105690.0,105680.0,1.49770867]
[1748588358449,0.03784481,105690.0,105680.0,1.89386867]
[1748588358670,0.02838327,105690.0,105680.0,1.89386867]
[1748588358864,0.03784463,105690.0,105680.0,1.89386867]
[1748588359113,0.03784463,105690.0,105680.0,1.89686867]
[1748588359525,0.02938327,105690.0,105680.0,1.90086867]
[1748588360156,0.001,105690.0,105680.0,2.70131467]
[1748588360380,0.001,105690.0,105680.0,2.62436467]
[1748588360588,0.001,105690.0,105680.0,3.01864166]
[1748588360795,0.03884436,105690.0,105680.0,2.52529802]
[1748588361003,0.03884436,105690.0,105680.0,2.53102103]
[1748588361208,0.03884436,105690.0,105680.0,2.65547403]
[1748588361626,0.02938282,105690.0,105680.0,2.65547403]
[1748588362255,0.01992173,105690.0,105680.0,4.46355903]
[1748588362452,0.02938282,105690.0,105680.0,4.46355903]
[1748588362672,0.01992182,105690.0,105680.0,4.46355903]
[1748588363299,0.02938291,105690.0,105680.0,4.54985203]
[1748588363506,0.1986786,105700.0,105680.0,4.54985203]
[1748588363507,0.18806151,105700.0,105690.0,0.8410195]
[1748588363722,0.18806151,105700.0,105690.0,1.93569044]
[1748588363975,0.18806151,105700.0,105690.0,1.94515171]
[1748588364357,0.18806151,105700.0,105690.0,2.33569044]
[1748588364560,0.00946029,105700.0,105690.0,2.34515171]
[1748588364768,0.01892084,105700.0,105690.0,2.35461289]
[1748588364973,0.20813559,105700.0,105690.0,2.35461289]
[1748588365179,0.02838157,105700.0,105690.0,1.96607389]
[1748588365377,0.19875089,105710.0,105700.0,0.24421633]
[1748588365577,0.20821037,105710.0,105700.0,0.73900791]
[1748588366078,0.19875089,105710.0,105700.0,0.73900791]
[1748588366468,0.18929114,105710.0,105700.0,0.72954727]
[1748588366619,0.18938397,105710.0,105700.0,0.14705553]
[1748588366832,0.18938397,105710.0,105700.0,0.1385948]
[1748588367288,0.18938397,105710.0,105700.0,0.14805553]
[1748588367711,0.18938397,105710.0,105700.0,0.1385948]
[1748588368143,0.18938397,105710.0,105700.0,0.1375948]
[1748588368350,0.18938397,105710.0,105700.0,0.15008822]
[1748588368763,0.18938397,105710.0,105700.0,0.15208822]
[1748588368989,0.18938397,105710.0,105700.0,0.13578822]
[1748588369184,0.18938397,105710.0,105700.0,0.53174822]
[1748588369850,0.18938397,105710.0,105700.0,0.7304237]
[1748588370083,0.20830338,105710.0,105700.0,1.15036133]
[1748588370313,0.19884381,105710.0,105700.0,0.94222521]
[1748588370527,0.15884381,105710.0,105700.0,0.54794822]
[1748588372062,0.15884381,105710.0,105700.0,0.53091611]
[1748588372278,0.15884381,105710.0,105700.0,0.10554737]
[1748588372487,0.15884381,105710.0,105700.0,0.50146737]
[1748588373796,0.15884381,105710.0,105700.0,0.20078737]
[1748588374018,0.17434381,105710.0,105700.0,0.50146737]
[1748588374449,0.19024381,105710.0,105700.0,0.40092]
[1748588374722,0.15884381,105710.0,105700.0,0.49197395]
[1748588376175,0.15884381,105710.0,105700.0,0.50166259]
[1748588376670,0.15884381,105710.0,105700.0,0.49197395]
[1748588377817,0.11884381,105710.0,105700.0,0.49197395]
[1748588379483,0.11884381,105710.0,105700.0,0.69064925]
[1748588379722,0.11884381,105710.0,105700.0,1.11428138]
[1748588379951,0.11884381,105710.0,105700.0,1.12355179]
[1748588380158,0.11884381,105710.0,105700.0,1.11409124]
[1748588380366,0.11884381,105710.0,105700.0,1.13301261]
[1748588380800,0.11884381,105710.0,105700.0,0.93433722]
[1748588381762,0.11884381,105710.0,105700.0,1.14247281]
[1748588381985,0.0095524,105710.0,105700.0,2.38453112]
[1748588382207,0.03793111,105710.0,105700.0,1.46068412]
[1748588382421,0.04739095,105710.0,105700.0,1.46068412]
[1748588382839,0.20820927,105710.0,105700.0,1.34585152]
[1748588383057,0.01901206,105710.0,105700.0,1.35550159]
[1748588383280,0.02847118,105710.0,105700.0,1.35550159]
[1748588383698,0.03793093,105710.0,105700.0,1.35550177]
[1748588384372,0.04739077,105710.0,105700.0,1.35550177]
[1748588384588,0.21766893,105710.0,105700.0,1.33658111]
[1748588385050,0.21766893,105710.0,105700.0,1.3460414]
[1748588385287,0.21766893,105710.0,105700.0,1.33658111]
[1748588385527,0.21766893,105710.0,105700.0,1.34604157]
[1748588385943,0.02847163,105710.0,105700.0,1.77004271]
[1748588386176,0.03793057,105710.0,105700.0,0.97412271]
[1748588386402,0.57940891,105710.0,105700.0,0.005]
[1748588386626,0.57940891,105710.0,105700.0,0.30556]
[1748588389081,0.01892997,105650.0,105640.0,0.0313]
[1748588389265,0.19876933,105650.0,105640.0,0.74662106]
[1748588389482,0.19876933,105650.0,105640.0,0.67435595]
[1748588389731,0.19876933,105650.0,105640.0,0.6888968]
[1748588389948,0.19876933,105650.0,105640.0,0.67435595]
[1748588390388,0.19876933,105650.0,105640.0,0.92610693]
[1748588390593,0.19976933,105650.0,105640.0,1.14713238]
[1748588390810,0.20076933,105650.0,105640.0,1.15113238]
[1748588391231,0.20076933,105650.0,105640.0,1.16059849]
[1748588391442,0.20076933,105650.0,105640.0,1.49113238]
[1748588391657,0.16076933,105650.0,105640.0,1.49113238]
[1748588391832,0.17023436,105650.0,105640.0,1.49113238]
[1748588392256,0.16076933,105650.0,105640.0,1.49113238]
[1748588392611,0.16076933,105650.0,105640.0,1.5005984]
[1748588393225,0.16076933,105650.0,105640.0,1.51006451]
[1748588393430,0.16076933,105650.0,105640.0,1.50059849]
[1748588394009,0.16076933,105650.0,105640.0,1.10491849]
[1748588394215,0.16076933,105650.0,105640.0,1.69938673]
[1748588394434,0.002,105650.0,105640.0,5.59361509]
[1748588394627,0.002,105650.0,105640.0,4.57598209]
[1748588394628,0.02092925,105650.0,105640.0,4.57598209]
[1748588394871,0.01146449,105650.0,105640.0,4.87308209]
[1748588395073,0.002,105650.0,105640.0,4.47740209]
[1748588395207,0.002,105650.0,105640.0,4.87308209]
[1748588395428,0.002,105650.0,105640.0,7.24327209]
[1748588396032,0.002,105650.0,105640.0,7.64327209]
[1748588397368,0.002,105650.0,105640.0,7.67166309]
[1748588398973,0.02285215,105670.0,105660.0,1.71931426]
[1748588399177,0.02285215,105670.0,105660.0,2.59958034]
[1748588399383,0.02285161,105670.0,105660.0,2.5608863]
[1748588399593,0.02285161,105670.0,105660.0,2.97034999]
[1748588400005,0.02285161,105670.0,105660.0,2.97134999]
[1748588400218,0.02285161,105670.0,105660.0,3.26844999]
[1748588400453,0.28416688,105680.0,105670.0,0.38050418]
[1748588400703,0.28416688,105680.0,105670.0,1.76005873]
[1748588400704,0.27470489,105680.0,105670.0,1.76005873]
[1748588400933,0.27470489,105680.0,105670.0,1.74355873]
[1748588401642,0.27470489,105680.0,105670.0,1.75895873]
[1748588402113,0.01892477,105680.0,105670.0,1.79388476]
[1748588402322,0.22709949,105680.0,105670.0,1.79388494]
[1748588402532,0.2176375,105680.0,105670.0,1.77495873]
[1748588402775,0.20817533,105680.0,105670.0,1.77495873]
[1748588402982,0.20817533,105680.0,105670.0,1.78442179]
[1748588403197,0.02838676,105680.0,105670.0,1.79388458]
[1748588403412,0.01892424,105680.0,105670.0,3.48202858]
[1748588403627,0.21763723,105680.0,105670.0,3.47256579]
[1748588404054,0.00945993,105700.0,105690.0,0.20815529]
[1748588404266,0.2091159,105710.0,105700.0,0.20813576]
[1748588404527,0.2091159,105710.0,105690.0,1.75828032]
[1748588404528,0.03784097,105700.0,105690.0,1.75828032]
[1748588404729,0.21759632,105700.0,105690.0,1.44615345]
[1748588405171,0.20813603,105700.0,105690.0,1.436692]
[1748588405378,0.20828318,105700.0,105690.0,0.8411948]
[1748588405825,0.17928318,105700.0,105690.0,1.23476166]
[1748588406032,0.17928318,105700.0,105690.0,1.59995077]
[1748588406224,0.18128318,105700.0,105690.0,1.40125666]
[1748588406430,0.18128318,105700.0,105690.0,0.94747766]
[1748588406638,0.17928318,105700.0,105690.0,1.34303766]
[1748588406863,0.17928318,105700.0,105690.0,0.94747766]
[1748588407008,0.17928318,105700.0,105690.0,0.84116166]
[1748588407208,0.17928318,105700.0,105690.0,1.23672166]
[1748588407448,0.17928318,105700.0,105690.0,1.35778948]
[1748588407629,0.17928318,105700.0,105690.0,1.56794531]
[1748588407843,0.18874373,105700.0,105690.0,1.90600658]
[1748588408049,0.00014715,105700.0,105690.0,2.29957344]
[1748588408274,0.02852765,105700.0,105690.0,2.30903444]
[1748588408481,0.01906728,105700.0,105690.0,2.30903444]
[1748588408872,0.02852757,105700.0,105690.0,1.91347444]
[1748588409083,0.01906728,105700.0,105690.0,2.30899444]
[1748588409869,0.03798812,105700.0,105690.0,2.30899444]
[1748588410913,0.04744876,105700.0,105690.0,2.30899444]
[1748588411320,0.03798812,105700.0,105690.0,2.30899444]
[1748588411529,0.01906719,105700.0,105690.0,2.70899444]
[1748588411730,0.01906728,105700.0,105690.0,2.70899444]
[1748588411967,0.01906728,105700.0,105690.0,1.92186072]
[1748588412180,0.00014715,105700.0,105690.0,2.70899444]
[1748588413570,0.00014715,105700.0,105690.0,6.56873144]
[1748588413790,0.00014715,105700.0,105690.0,6.17661144]
[1748588414743,0.00014715,105700.0,105690.0,6.88507244]
[1748588415796,0.00014715,105700.0,105690.0,7.65639544]
[1748588416037,0.001,105710.0,105700.0,0.24849587]
[1748588416256,0.02001165,105710.0,105700.0,4.50497568]
[1748588416479,0.02001156,105710.0,105700.0,2.70448968]
[1748588416694,0.02001156,105710.0,105700.0,2.19091368]
[1748588416938,0.01055217,105710.0,105700.0,2.58635368]
[1748588417174,0.00109296,105710.0,105700.0,2.59569927]
[1748588417655,0.01055199,105710.0,105700.0,2.59569927]
[1748588417879,0.02947086,105710.0,105700.0,3.08153227]
[1748588418126,0.02001129,105710.0,105700.0,3.08353227]
[1748588418372,0.00109296,105710.0,105700.0,3.08353227]
[1748588418841,0.00109296,105710.0,105700.0,4.96224927]
[1748588419062,0.01055199,105710.0,105700.0,4.95098627]
[1748588419525,0.00109296,105710.0,105700.0,4.95098627]
[1748588420039,0.00109296,105710.0,105700.0,4.76203827]
[1748588420262,0.00109296,105710.0,105700.0,5.06945027]
[1748588420985,0.00109296,105710.0,105700.0,2.17900227]
[1748588421245,0.19806043,105730.0,105720.0,4.16457857]
[1748588421246,0.00879437,105730.0,105720.0,4.16457857]
[1748588421477,0.00879437,105730.0,105720.0,4.89331124]
[1748588421711,0.03716744,105730.0,105720.0,3.19093633]
[1748588421941,0.02770948,105730.0,105720.0,2.29398165]
[1748588422167,0.02770948,105730.0,105720.0,3.77556465]
[1748588422397,0.01825179,105730.0,105720.0,3.77556465]
[1748588422626,0.01825179,105730.0,105720.0,3.77856465]
[1748588422627,0.02770948,105730.0,105720.0,3.77856465]
[1748588423062,0.00879437,105730.0,105720.0,3.97129765]
[1748588423295,0.02770912,105730.0,105720.0,3.97129765]
[1748588423547,0.0466245,105730.0,105720.0,3.88977265]
[1748588423790,0.03716672,105730.0,105720.0,3.88977265]
[1748588423984,0.03716672,105730.0,105720.0,3.58953265]
[1748588424246,0.02770912,105730.0,105720.0,3.64939165]
[1748588424469,0.00879437,105730.0,105720.0,3.64839165]
[1748588424699,0.00879437,105730.0,105720.0,3.64939165]
[1748588425215,0.00879437,105730.0,105720.0,7.74979865]
[1748588425435,0.00879437,105730.0,105720.0,8.04689865]
[1748588426116,0.00879437,105730.0,105720.0,2.99704165]
[1748588426363,0.01754613,105740.0,105730.0,0.60307499]
[1748588426591,0.01754613,105740.0,105730.0,6.82821966]
[1748588427018,0.02023217,105750.0,105740.0,2.51078728]
[1748588427240,0.02983547,105750.0,105740.0,2.99696123]
[1748588427488,0.01092377,105750.0,105740.0,3.31307009]
[1748588427764,0.01092377,105750.0,105740.0,3.33635609]
[1748588427765,0.01092394,105750.0,105740.0,3.33635609]
[1748588427983,0.02037975,105750.0,105740.0,3.34278923]
[1748588428339,0.01092394,105750.0,105740.0,3.34278923]
[1748588428763,0.02037966,105750.0,105740.0,3.34278923]
[1748588429021,0.01092394,105750.0,105740.0,3.34278923]
[1748588429188,0.00146831,105750.0,105740.0,3.34278923]
[1748588429393,0.00246831,105750.0,105740.0,3.34278923]
[1748588429602,0.01192385,105750.0,105740.0,3.73635609]
[1748588429818,0.01092385,105750.0,105740.0,3.73635609]
[1748588430036,0.02037966,105750.0,105740.0,3.73735609]
[1748588430260,0.22841711,105750.0,105740.0,2.22994181]
[1748588430475,0.20950585,105750.0,105740.0,1.72647296]
[1748588430681,0.23094986,105750.0,105740.0,0.78272081]
[1748588430897,0.23094986,105750.0,105740.0,0.89541395]
[1748588431322,0.23094986,105750.0,105740.0,0.89494081]
[1748588431555,0.23094986,105750.0,105740.0,1.28998081]
[1748588431768,0.23094986,105750.0,105740.0,0.89494081]
[1748588431990,0.23094986,105750.0,105740.0,1.28998081]
[1748588432207,0.23094986,105750.0,105740.0,0.89494081]
[1748588432419,0.23094986,105750.0,105740.0,0.89641395]
[1748588433049,0.23094986,105750.0,105740.0,0.80145395]
[1748588433255,0.23094986,105750.0,105740.0,0.89637395]
[1748588434334,0.23094986,105750.0,105740.0,0.09305395]
[1748588434551,0.23094986,105750.0,105740.0,0.002]
[1748588434748,0.23094986,105750.0,105740.0,0.30208]
[1748588435185,0.23094986,105750.0,105740.0,0.30108]
[1748588435827,0.23294986,105750.0,105740.0,0.30008]
[1748588436039,0.23494986,105750.0,105740.0,0.30008]
[1748588439606,0.23494986,105750.0,105740.0,0.78470081]
[1748588439836,0.23494986,105750.0,105740.0,0.48462081]
[1748588440100,0.23494986,105750.0,105740.0,0.88907779]
[1748588440344,0.21350585,105750.0,105740.0,0.87962081]
[1748588441076,0.21350585,105750.0,105740.0,1.06876399]
[1748588441294,0.21150585,105750.0,105740.0,1.07822114]
[1748588441519,0.21150585,105750.0,105720.0,0.2981]
[1748588441520,0.2214936,105750.0,105720.0,0.2981]
[1748588441764,0.23897654,105730.0,105720.0,1.10002686]
[1748588441979,0.23897654,105730.0,105720.0,1.58608081]
[1748588442763,0.23897654,105730.0,105720.0,0.38915395]
[1748588442991,0.23897654,105730.0,105720.0,0.09692]
[1748588443198,0.23897654,105730.0,105720.0,0.39696]
[1748588443853,0.23897654,105730.0,105720.0,0.39896]
[1748588444279,0.23897654,105730.0,105720.0,0.39696]
[1748588444482,0.33003049,105730.0,105720.0,0.002]
[1748588444681,0.33403049,105730.0,105720.0,0.002]
[1748588444866,0.33403049,105730.0,105720.0,0.001]
[1748588445437,0.33403049,105730.0,105720.0,0.30108]
[1748588445626,0.20817498,105680.0,105670.0,0.07596259]
[1748588445836,0.20817498,105680.0,105670.0,0.56205654]
[1748588446448,0.20817498,105680.0,105670.0,0.18601395]
[1748588446649,0.22347498,105680.0,105670.0,0.48609395]
[1748588446899,0.22347498,105680.0,105670.0,0.48618691]
[1748588447047,0.22347498,105680.0,105670.0,0.48918691]
[1748588447256,0.20817498,105680.0,105670.0,0.48918691]
[1748588447455,0.24047498,105680.0,105670.0,0.00309296]
[1748588447834,0.24047498,105680.0,105670.0,0.30521296]
[1748588448080,0.24047498,105680.0,105670.0,0.00509296]
[1748588448293,0.20047498,105680.0,105670.0,9.296e-05]
[1748588448498,0.2193994,105680.0,105670.0,0.30021296]
[1748588448708,0.2203994,105680.0,105670.0,0.30021296]
[1748588449378,0.1880994,105680.0,105670.0,0.09114691]
[1748588449589,0.1900994,105680.0,105670.0,0.48622691]
[1748588449799,0.1890994,105680.0,105670.0,0.48622691]
[1748588450247,0.1890994,105680.0,105670.0,0.48722691]
[1748588452214,0.1890994,105680.0,105670.0,0.88074098]
[1748588452605,0.1890994,105680.0,105670.0,0.48722691]
[1748588452815,0.2213994,105680.0,105670.0,0.00109296]
[1748588453026,0.2213994,105680.0,105670.0,0.39609296]
[1748588455335,0.1813994,105680.0,105670.0,0.39613296]
[1748588456027,0.1490994,105680.0,105670.0,0.39613296]
[1748588456711,0.1490994,105680.0,105670.0,0.09597296]
[1748588456931,0.1793994,105680.0,105670.0,0.39609296]
[1748588457413,0.1490994,105680.0,105670.0,0.39609296]
[1748588457669,0.1490994,105680.0,105670.0,0.39613296]
[1748588462446,0.1090994,105680.0,105670.0,0.39613296]
[1748588464544,0.1090994,105680.0,105670.0,0.88070098]
[1748588464746,0.1090994,105680.0,105670.0,0.89680098]
[1748588464936,0.1090994,105680.0,105670.0,0.50328691]
[1748588466774,0.1090994,105680.0,105670.0,0.51968691]
[1748588467216,0.09963732,105680.0,105670.0,0.91320098]
[1748588468010,0.09963732,105680.0,105670.0,0.51968691]
[1748588468619,0.09963732,105680.0,105670.0,1.10246945]
[1748588468825,0.02092389,105680.0,105670.0,1.48032169]
[1748588469045,0.002,105680.0,105670.0,4.11941469]
[1748588469266,0.002,105680.0,105670.0,4.43105554]
[1748588469939,0.02092362,105680.0,105670.0,4.43105554]
[1748588470146,0.02092362,105680.0,105670.0,4.43005554]
[1748588470361,0.02092362,105680.0,105670.0,7.24281954]
[1748588470572,0.04731038,105680.0,105670.0,3.72800454]
[1748588470795,0.01892209,105690.0,105680.0,1.60847922]
[1748588471032,0.03784481,105690.0,105680.0,2.27215724]
[1748588471243,0.03784481,105690.0,105680.0,2.27215742]
[1748588471449,0.04730635,105690.0,105680.0,2.27215742]
[1748588471659,0.04730635,105690.0,105680.0,2.67215742]
[1748588472090,0.21761701,105690.0,105680.0,2.65323353]
[1748588472526,0.1986942,105690.0,105680.0,2.07612102]